Cogmind - Beta 14 @@@ ROGUE MODE // 2024.11.15 @ 10:08:58 Player: Hinzy Result: Destroyed by U7-2IB(R) with Subdweller Machine Gun Performance ------------- Evolutions (0) 0 Regions Visited (2) 400 Robots Destroyed (28) 140 Value Destroyed (715) 715 Prototype IDs (5) 100 Alien Tech Used (0) 0 Bonus (0) 0 TOTAL SCORE: 1355 Bonus ------- None Cogmind --------- Core Integrity 0/250 Matter 185/300 Energy 100/100 System Corruption 1% Temperature Cool (0) Movement Core (200) Ox3 Location -10/Subcaves Parts ------- > --- POWER (1) -------- (None) > --- PROPULSION (2) --- (None) > --- UTILITY (2) ------ Improved Heat Sink Small Storage Unit > --- WEAPON (2) ------- Heavy Assault Rifle Heavy Assault Rifle > --- INVENTORY (8) ---- High-capacity Storage Unit Spread Laser Mining Laser Hammer Peak State ------------ > --- POWER ------------ Light Nuclear Core > --- PROPULSION ------- Light Treads Light Treads > --- UTILITY ---------- Improved Heat Sink Small Storage Unit > --- WEAPON ----------- Spread Laser Spread Laser > --- INVENTORY -------- Light Ion Engine Improved Aluminum Leg Improved Aluminum Leg Light EM Pulse Cannon Light EM Pulse Cannon Grenade Launcher Mining Laser [Rating: 14] Favorites ----------- Power Light Nuclear Core Engine Ion Engine Power Core Light Nuclear Core Propulsion Light Treads Treads Light Treads Leg Improved Aluminum Leg Utility Small Storage Unit Device Improved Heat Sink Storage Small Storage Unit Weapon Spread Laser Energy Gun Spread Laser Energy Cannon Light EM Pulse Cannon Ballistic Gun Assault Rifle Launcher Grenade Launcher Impact Weapon Hammer Build | -11 -10 -10 ------- Run | Yrd Mat Sub Slots Evolved . | . . . Power . | . . . Propulsion . | . . . Utility . | . . . Weapon . | . . . Parts Attached 17 | 3 9 5 Power 3 | . 2 1 Engine 2 | . 1 1 Core 1 | . 1 . Reactor . | . . . Propulsion 4 | 2 . 2 Treads 2 | 2 . . Leg 2 | . . 2 Wheel . | . . . Hover . | . . . Flight . | . . . Utility 2 | 1 1 . Device 2 | 1 1 . Storage . | . . . Processor . | . . . Hackware . | . . . Protection . | . . . Artifact . | . . . Weapon 8 | . 6 2 Energy Gun 2 | . 2 . Energy Cannon 2 | . 2 . Ballistic Gun 2 | . . 2 Ballistic Cannon . | . . . Launcher 1 | . 1 . Special Weapon . | . . . Impact Weapon 1 | . 1 . Slashing Weapon . | . . . Piercing Weapon . | . . . Special Melee Weapon . | . . . Unidentified Prototypes . | . . . Parts Lost 7 | . . 7 Power 2 | . . 2 Propulsion 4 | . . 4 Utility . | . . . Weapon 1 | . . 1 Highest Loss Streak 3 | . . 3 To Critical Strikes 1 | . . 1 Average Slot Usage (%) 98 | . 99 95 Engine 5 | . 5 3 Core 8 | . 8 9 Treads 26 | . 28 18 Leg 1 | . . 7 Device 14 | . 14 14 Storage 14 | . 14 14 Energy Gun 16 | . 19 . Energy Cannon 2 | . 3 . Ballistic Gun 1 | . 1 2 Launcher 2 | . . 11 Impact Weapon 4 | . 1 12 Peak Build Rating 14 | 9 14 13 Average Rating 12 | 8 12 11 On Entrance 9 | 6 9 12 Naked Turns . | . . . Heaviest Build 19 | 15 19 16 Greatest Support 40 | 40 40 40 Greatest Overweight (x) 3 | . . 3 Average Overweight (x) . | . . . Largest Inventory Capacity 8 | 8 8 8 Average Capacity 8 | 8 8 8 Most Carried 8 | 7 8 8 Average Carried 7 | 5 7 7 Final Capacity 8 | 8 8 8 Final Carried 8 | 5 8 4 Class Distribution -------------------- 100% | Mutant Dominant Class ---------------- Mutant | -10/Materials Mutant | -10/Subcaves Resources | -11 -10 -10 ----------- Run | Yrd Mat Sub Matter Collected 391 | 230 108 53 Remotely . | . . . Salvage Created 974 | 75 871 28 Parts 54 | 6 48 . Haulers Intercepted 1 | . 1 . Recyclers Shooed . | . . . Parts Field Recycled . | . . . Retrieved Matter . | . . . Parts Self-Destructed . | . . . Prevented . | . . . Kills | -11 -10 -10 ------- Run | Yrd Mat Sub Combat Hostiles Destroyed 15 | . 13 2 Guns 10 | . 10 . Cannons 3 | . 3 . AOE 2 | . . 2 Classes Destroyed 10 | 2 6 2 Worker 2 | . 2 . Builder 1 | . 1 . Tunneler 1 | 1 . . Hauler 1 | . 1 . Recycler 4 | 1 3 . Mechanic 1 | . 1 . Watcher 3 | . 3 . Grunt 13 | . 13 . Artisan 1 | . . 1 Subdweller 2 | . . 2 Best Kill Streak 5 | 2 5 2 Combat Bots Only 4 | . 4 2 Max Kills in Single Turn 2 | 1 2 1 Gunslinging . | . . . Exploded 1 | . . 1 Melee . | . . . Uniques/NPCs Destroyed . | . . . Combat | -11 -10 -10 -------- Run | Yrd Mat Sub Hostile Shots Fired 84 | . 38 46 Missed 15 | . 8 7 Damage Taken 1464 | . 489 975 Core 270 | . 58 212 Absorbed by Shields . | . . . Core Remaining (%) 100 | 100 . . Volleys Fired 73 | 5 52 16 Largest 2 | 1 2 2 Hottest 130 | 50 130 46 Shots Fired 131 | 5 100 26 Gun 102 | 5 77 20 Cannon 20 | . 20 . Launcher 9 | . 3 6 Special . | . . . Kinetic 24 | . 4 20 Thermal 78 | 5 73 . Explosive 9 | . 3 6 Electromagnetic 20 | . 20 . Robot Hit Streak 12 | 5 8 12 Robot Miss Streak 9 | . 9 1 Penetration Max . | . . . Secondary Targets 2 | . 2 . Max Gunslinging Chain 1 | . 1 . Shots Hit Robots 109 | 5 79 25 Core Hits 97 | 3 91 3 Critical Kills . | . . . Critical Parts Destroyed 2 | . 1 1 Critical Strikes 4 | 2 1 1 Burn 2 | 2 . . Smash 2 | . 1 1 Melee Attacks 3 | . 1 2 Impact 3 | . 1 2 Slashing . | . . . Piercing . | . . . Sneak Attacks 1 | . 1 . Combat Hostiles . | . . . Follow-up Attacks . | . . . Damage Inflicted 1640 | 63 1199 378 Guns 914 | 63 851 . Cannons 285 | . 285 . Explosions 337 | . 24 313 Melee 97 | . 32 65 Ramming 7 | . 7 . Kinetic 25 | . 25 . Thermal 913 | 63 850 . Explosive 313 | . . 313 Electromagnetic 285 | . 285 . Impact 97 | . 32 65 Slashing . | . . . Piercing . | . . . Highest Corruption 1 | . 1 1 Average Corruption 1 | . 1 1 Corruption Purged . | . . . Corruption Blocked . | . . . Effects 6 | . 3 3 Matter Fused 1 | . . 1 Heat Flow Errors 1 | . . 1 Energy Discharges 2 | . 1 1 Data Loss (major) 1 | . 1 . Alerts 1 | . 1 . Overload Shots . | . . . Overflow Damage 81 | . 42 39 Projectiles 10 | . 10 . Explosions 18 | . . 18 Melee 53 | . 32 21 Knockbacks . | . . . Impact . | . . . Kinetic . | . . . Secondary . | . . . Self-Inflicted Damage 254 | . 105 149 Shots 8 | . 3 5 Rammed 2 | . 2 . Targets Rammed 3 | . 3 . Kicked . | . . . Crushed 1 | . 1 . Highest Temperature 261 | 40 261 209 Average Temperature 79 | 18 82 90 Received Heat Transfer 634 | . 225 409 Siege Activations . | . . . Robots Corrupted 1 | . . 1 Combat Hostiles . | . . . Parts Fried 1 | . 1 . Impact Corruptions 3 | . 2 1 Robots Melted . | . . . Combat Hostiles . | . . . Parts Melted 2 | 1 1 . Heat Transferred 1486 | 333 1153 . Parts Sabotaged . | . . . Parts Stolen . | . . . Parts Stripped . | . . . Power Chain Reactions 1 | . 1 . Alert | -11 -10 -10 ------- Run | Yrd Mat Sub Peak Influence 384 | 10 384 . Initial 6 | . 6 . Average 172 | 6 177 . Maximum Alert Level 1 | . 1 . Low Security (%) 58 | 100 56 . Level 1 41 | . 43 . Level 2 . | . . . Level 3 . | . . . Level 4 . | . . . Level 5 . | . . . High Security . | . . . Max Security . | . . . Squads Dispatched 2 | . 2 . Investigation 1 | . 1 . Extermination . | . . . Reinforcement 1 | . 1 . Assault . | . . . Garrison . | . . . Intercept . | . . . Searches Triggered . | . . . Construction Impeded . | . . . Haulers Reinforced . | . . . Active Scanning Responses . | . . . Cargo Convoy Interrupts . | . . . Stealth | -11 -10 -10 --------- Run | Yrd Mat Sub Distress Signals 1 | . 1 . Communications Jammed . | . . . Distress Signals . | . . . Times Spotted 26 | . 21 5 Peak Tracking Total 3 | . 3 3 Tactical Retreats . | . . . Traps | -11 -10 -10 ------- Run | Yrd Mat Sub Traps Triggered 2 | . 2 . Indirectly . | . . . Trap Hack Attempts . | . . . Triggered . | . . . Disarmed . | . . . Reprogrammed . | . . . Reused . | . . . Traps Extracted . | . . . Installed . | . . . Triggered . | . . . Machines | -11 -10 -10 ---------- Run | Yrd Mat Sub Machines Disabled 4 | . 4 . Max in Single Turn 2 | . 2 . Machines Repaired . | . . . Machines Dismantled . | . . . Machines Sabotaged . | . . . Overloaded Fab Kills . | . . . Hacking | -11 -10 -10 --------- Run | Yrd Mat Sub Machines Accessed 7 | . 7 . Terminals 7 | . 7 . Fabricators . | . . . Repair Stations . | . . . Recycling Units . | . . . Scanalyzers . | . . . Garrison Access . | . . . Total Hacks 25 | . 25 . Successful 13 | . 13 . Failed 12 | . 12 . Catastrophic 1 | . 1 . Database Lockouts . | . . . Manual 12 | . 12 . Terminals 25 | . 25 . Fabricators . | . . . Repair Stations . | . . . Recycling Units . | . . . Scanalyzers . | . . . Garrison Access . | . . . Terminal Hacks 8 | . 8 . Robot Analysis 1 | . 1 . Prototype ID Bank 3 | . 3 . Branch Access Points 1 | . 1 . Terminal Index 1 | . 1 . Dispatch Records 1 | . 1 . Investigation Status 1 | . 1 . Fabricator Hacks . | . . . Repair Station Hacks . | . . . Recycling Unit Hacks . | . . . Scanalyzer . | . . . Garrison Access Hacks . | . . . Unauthorized Hacks 5 | . 5 . Terminals 5 | . 5 . Skim 5 | . 5 . Fabricators . | . . . Repair Stations . | . . . Recycling Units . | . . . Scanalyzers . | . . . Garrison Access . | . . . Data Cores Recovered . | . . . Used . | . . . Hacking Detections 6 | . 6 . Full Trace Events . | . . . Feedback Events . | . . . Feedback Blocked . | . . . Robot Schematics Acquired . | . . . Robots Built . | . . . Authchips . | . . . Time . | . . . Total Robot Build Rating . | . . . Part Schematics Acquired . | . . . Parts Built . | . . . Authchips . | . . . Time . | . . . Total Part Build Rating . | . . . Parts Repaired . | . . . Time . | . . . Parts Recycled . | . . . Recycled Matter . | . . . Retrieved Matter . | . . . Retrieved Components . | . . . Parts Scanalyzed . | . . . Part Schematics Acquired . | . . . Parts Damaged . | . . . Bothacking | -11 -10 -10 ------------ Run | Yrd Mat Sub Used RIF Installer . | . . . Robots Hacked . | . . . Non-combat . | . . . Combat . | . . . Robot Hacks Applied . | . . . Relay Couplers Released . | . . . Fabnet Peak Effective % . | . . . Robots Rewired . | . . . Allies Hacked . | . . . Hacks Repelled . | . . . Allies | -11 -10 -10 -------- Run | Yrd Mat Sub Total Allies . | . . . Largest Group . | . . . Highest-Rated Group . | . . . Highest-Rated Ally . | . . . Total Orders . | . . . Ally Attacks . | . . . Total Damage . | . . . Kills . | . . . Allies Corrupted . | . . . Allies Melted . | . . . Intel | -11 -10 -10 ------- Run | Yrd Mat Sub Robot Analysis Total 1 | . 1 . Derelict Logs Recovered 1 | . . 1 Drone Launches . | . . . Drone Recoveries . | . . . Exploration | -11 -10 -10 ------------- Run | Yrd Mat Sub Turns Passed 1922 | 45 1504 373 Spaces Moved 919 | 19 691 209 Core 4 | . . 4 Treads 861 | 18 691 152 Legs 54 | 1 . 53 Wheels . | . . . Hover . | . . . Flight . | . . . Fastest Speed 120 | 120 160 120 Average Speed 157 | 157 160 150 Slowest Speed 200 | 160 160 200 Overloaded Moves . | . . . Propulsion Burnouts . | . . . Robots Hopped . | . . . Cave-ins Triggered . | . . . Exploration Rate (%) 36 | 3 84 21 Regions Visited 2 Branch Regions 1 Pre-discovered Areas 2 | . 2 . Known Exits Taken 1 | . 1 . Unknown Exits Taken 1 | 1 . . Scrap Searched . | . . . Spaces Dug . | . . . Terrain Destroyed 101 | . 81 20 Melee . | . . . Projectile . | . . . AOE 101 | . 81 20 Terrain Rammed . | . . . Walls Destroyed . | . . . Machines Disabled . | . . . Actions | -11 -10 -10 --------- Run | Yrd Mat Sub Total 1255 | 29 987 239 Wait 218 | . 211 7 Move 917 | 18 690 209 Hop . | . . . Pick Up 11 | 1 10 . Fast Attach 5 | 1 4 . Attach 4 | . . 4 Detach . | . . . Swap 8 | 2 5 1 Drop 13 | 2 11 . Fire 73 | 5 52 16 Melee 3 | . 1 2 Ram . | . . . Kick . | . . . Crush 3 | . 3 . Escape Stasis . | . . . Rewire . | . . . Trap . | . . . Miscellaneous . | . . . Route ------- -11/Scrapyard -10/Materials (discovered 5 exits: *Mat x3 / Min / *Sub) -10/Subcaves (discovered 1 exit: [*Mat]) History --------- Turn | Location | Event 1 | -11/Scrapyard | Discovered new exit (range 2) 46 | -11/Scrapyard | Entered Materials 303 | -10/Materials | Build established: Mutant 371 | -10/Materials | Discovered new exit (range 10) 567 | -10/Materials | Discovered new exit (range 4) 867 | -10/Materials | Loaded intel: 13 trap records 882 | -10/Materials | Identified exit to Mines 923 | -10/Materials | Learned Storage stockpile data 970 | -10/Materials | Learned location of 1 exit from Storage 1005 | -10/Materials | Learned location of Storage (-9) 1032 | -10/Materials | Identified exit to Subcaves 1078 | -10/Materials | Identified exit to Materials 1078 | -10/Materials | Learned location of 1 exit from Materials 1117 | -10/Materials | Learned location of 1 exit from Recycling 1550 | -10/Materials | Entered Subcaves 1721 | -10/Subcaves | Discovered new exit (range 9) 1793 | -10/Subcaves | Ambushed by Subdwellers from Twisted Machinery 1835 | -10/Subcaves | Lost 3 parts (1p2n) 1889 | -10/Subcaves | A Subdweller sparked back to life 1889 | -10/Subcaves | A Subdweller sparked back to life 1889 | -10/Subcaves | A Subdweller sparked back to life 1910 | -10/Subcaves | Core integrity fell below 50% 1915 | -10/Subcaves | Core integrity fell below 20% 1923 | -10/Subcaves | Destroyed by U7-2IB(R) with Subdweller Machine Gun Last Messages --------------- 01868_ Destroyed Grenade Launcher. 01870_ FK-IIA(u) suffers critical hit (Smash). 01870_ Destroyed Lgt. Ion Engine. 01870_ FK-IIA(u) system corrupted by crushing effect. 01871_ FK-IIA(u) system terminally corrupted. 01871_ FK-IIA(u) cries out in pain. 01873_ Acquired 5 matter. 01882_ Acquired 44 matter. 01887_ System corrupted: Energy discharge (-41). 01889_ Sneak attack on DI-0AP(R). 01889_ DI-0AP(R) creaks and sparks as it begins to move. 01889_ U7-2IB(R) creaks and sparks as it begins to move. 01889_ PP-2JU(R) creaks and sparks as it begins to move. 01904_ Lgt. Ion Engine destroyed. 01905_ Critical hit (Destroy). 01905_ Imp. Aluminum Leg destroyed. Map ----- +----------------------------------------------------+ | ??????????##?## #???## #### #???????????????? | | ?????????## ##### ## "#???????????????? | | ?????????? ## ### "#???????????????? | | ??????????? ## "#???????????????? | | ???????????? ????# #???????????????? | | ?????????????# ?????## "#???????????????? | | ??????????????# ??????## ######???????????????? | | ???????????#### ####### ##????????????????????? | | ?????###???# ## ## ##?????????????????????? | | ????? #?## #??????????????????????? | | ?????? ## #??????????????????????? | | ?????"""" ## ## ### # # ##??????????????????????? | | ?????""" "#" ###?#### #???????????????????????? | | ????????#"" ##??????# ##??????????????????????? | | ????????###"" #?????### #??????????????????????? | | ??????????## ##????# #??????????????????????? | | ???????????## #???? ##??????????????????????? | | ????????????## ##??? ###???????????????????????? | | ????????????## ##?## #???#######??????????????? | | ????????????# ### #???# #### ?????????? | | ???????????## ## #### ??????????? | | ??????# # # # &< ??????????? | | ??????#" & & < #????????????? | | ??????##" &!%# < #??????????????? | | ???????#" # ### ### R< ## #???????????????? | | ???????# ## #?## #?# @ R ##??????????????????? | | ???????# ??# ??## ########???????????????????? | | ?????? ??# ???# #??????????????????????????? | | ???? ???# ???# #?????????????????????????? | | ???? #????# ???# ?????????????????????????? | | ???#####????? ???# ????????????????????????? | | ?????????????# ???? ## ???????????????????????? | | ??????????????# ???? #?## ??????????????????????? | | ???????????????#???? ???##?????????????????????? | | ???????????????????? ??????????????????????????? | | ????????????????????# ??????????????????????????? | | ?????????????????????##??????????????????????????? | | ?????????????????????????????????????????????????? | | ?????????????????????????????????????????????????? | | ?????????????????????????????????????????????????? | | ?????????????????????????????????????????????????? | | ?????????????????????????????????????????????????? | | ?????????????????????????????????????????????????? | | ?????????????????????????????????????????????????? | | ?????????????????????????????????????????????????? | | ?????????????????????????????????????????????????? | | ?????????????????????????????????????????????????? | | ?????????????????????????????????????????????????? | | ?????????????????????????????????????????????????? | | ?????????????????????????????????????????????????? | +----------------------------------------------------+ Best States ------------- Heat Dissipation 39 Energy Generation 14 Energy Capacity 250 Matter Stores 300 Matter Capacity 300 Sight Range 16 Terrain Scan Range 16 Terrain Scan Density 10 Evasion (%) 55 Recoil Reduction 2 Item Schematics ----------------- None Robot Schematics ------------------ None Fabricated ------------ Nothing Alien Tech Used ----------------- None Achievements -------------- None Challenges ------------ None Game ------ Seed SignalScatterBeacon Manual? 0 Play Time 00:15:57 Cumulative 54.9 hours Start 2024.11.15 @ 09:55:06 End 2024.11.15 @ 10:08:58 Sessions 1 Manual Loads 0 Difficulty Rogue Special Mode None Game No. 36 Rogue 36 Adventurer 0 Explorer 0 Win Type - Total 0 Types 0/0/0/0/0/0/0/0/0 Lore% 35 Gallery% 39 Achievement% 32 Wizard Run 0 Options --------- Layout 2 ASCII 0 Keyboard 0 Movement Mouse Keybinds 0 Fullscreen 1 Font 24/Smallcaps Map View 50x44 Zoom Use 0% Tactical HUD 1 Map Filters NONE Filters NONE Steam 1 RUN: 26a99a12-1fab-45ba-b585-5ec8c8140297